Cogmind - Beta 13 @@@ ROGUE MODE // 2024.03.12 @ 09:20:47 Player: SX_7 Result: Self-destructed Performance ------------- Evolutions (0) 0 Regions Visited (4) 800 Robots Destroyed (34) 170 Value Destroyed (789) 789 Prototype IDs (27) 540 Alien Tech Used (0) 0 Bonus (-500) -500 TOTAL SCORE: 1799 Bonus ------- Friendly Fire -500 Cogmind --------- Core Integrity 11/250 Matter 274/300 Energy 17/250 System Corruption 0% Temperature Critical (708) Movement Core (1550) Ox30 Location -9/Mines Parts ------- > --- POWER (1) -------- Ion Engine > --- PROPULSION (2) --- (None) > --- UTILITY (2) ------ Huge Storage Unit Targeting Computer > --- WEAPON (2) ------- Beam Cannon Particle Cannon > --- INVENTORY (25) --- Light Treads Heat Sink Heat Sink High-capacity Storage Unit Structural Scanner Structural Scanner Signal Interpreter Makeshift Cloaking Device Light Armor Plating EM Pulse Gun Medium Laser Small Laser Beam Cannon Particle Cannon Firepult Rocket Launcher Peak State ------------ > --- POWER ------------ Ion Engine > --- PROPULSION ------- Light Treads Light Treads > --- UTILITY ---------- Huge Storage Unit Targeting Computer > --- WEAPON ----------- Firepult > --- INVENTORY -------- Ion Engine Light Treads Heat Sink Heat Sink High-capacity Storage Unit Structural Scanner Structural Scanner Signal Interpreter Light Armor Plating EM Pulse Gun Medium Laser Small Laser Beam Cannon Beam Cannon Particle Cannon Particle Cannon EMP Blaster EMP Blaster Rocket Launcher [Rating: 27] Favorites ----------- Power Ion Engine Engine Ion Engine Propulsion Light Treads Treads Light Treads Utility Targeting Computer Storage Huge Storage Unit Processor Targeting Computer Weapon EMP Blaster Energy Gun Medium Laser Energy Cannon Firepult Ballistic Gun Assault Rifle Launcher EMP Blaster Build | -11 -10 -10 -10 -9 ------- Run | Yrd Mat Min Exi Min Slots Evolved . | . . . . . Power . | . . . . . Propulsion . | . . . . . Utility . | . . . . . Weapon . | . . . . . Parts Attached 26 | 7 13 . 1 5 Power 3 | 1 1 . . 1 Engine 3 | 1 1 . . 1 Core . | . . . . . Reactor . | . . . . . Propulsion 3 | 2 1 . . . Treads 3 | 2 1 . . . Leg . | . . . . . Wheel . | . . . . . Hover . | . . . . . Flight . | . . . . . Utility 5 | 1 4 . . . Device . | . . . . . Storage 4 | 1 3 . . . Processor 1 | . 1 . . . Hackware . | . . . . . Protection . | . . . . . Artifact . | . . . . . Weapon 15 | 3 7 . 1 4 Energy Gun 2 | 2 . . . . Energy Cannon 6 | . 3 . 1 2 Ballistic Gun 1 | 1 . . . . Ballistic Cannon . | . . . . . Launcher 6 | . 4 . . 2 Special Weapon . | . . . . . Impact Weapon . | . . . . . Slashing Weapon . | . . . . . Piercing Weapon . | . . . . . Special Melee Weapon . | . . . . . Unidentified Prototypes . | . . . . . Parts Lost 7 | . 2 . . 5 Power 2 | . 1 . . 1 Propulsion 2 | . . . . 2 Utility . | . . . . . Weapon 3 | . 1 . . 2 Highest Loss Streak 5 | . 2 . . 5 To Critical Strikes . | . . . . . Average Slot Usage (%) 98 | . 98 100 97 91 Engine 14 | . 14 14 14 14 Treads 28 | . 28 28 28 28 Storage 14 | . 14 14 14 14 Processor 13 | . 11 14 14 14 Energy Gun 1 | . 4 . . . Energy Cannon 1 | . 1 . 2 11 Ballistic Gun 1 | . 3 . . . Launcher 22 | . 18 28 22 8 Naked Turns . | . . . . . Heaviest Build 107 | 14 93 93 107 107 Greatest Support 40 | 40 40 40 40 40 Greatest Overweight (x) 4 | 3 2 2 2 4 Average Overweight (x) 1 | . 1 2 2 2 Largest Inventory Capacity 25 | 8 25 25 25 25 Average Capacity 23 | 7 21 25 25 25 Most Carried 22 | 2 17 17 20 22 Average Carried 15 | . 12 17 17 19 Final Capacity 25 | 8 25 25 25 25 Final Carried 20 | 2 17 17 20 17 Class Distribution -------------------- 78% | Mutant 21% | Commander-Mutant Dominant Class ---------------- Mutant | -10/Materials Mutant | -10/Mines Commander-Mutant | -10/Exiles Mutant | -9/Mines Resources | -11 -10 -10 -10 -9 ----------- Run | Yrd Mat Min Exi Min Matter Collected 618 | 270 230 105 . 13 Remotely . | . . . . . Salvage Created 1331 | . 824 110 . 397 Parts 79 | . 59 14 . 6 Haulers Intercepted 1 | . 1 . . . Recyclers Shooed 2 | . 2 . . . Parts Field Recycled . | . . . . . Retrieved Matter . | . . . . . Parts Self-Destructed . | . . . . . Prevented . | . . . . . Kills | -11 -10 -10 -10 -9 ------- Run | Yrd Mat Min Exi Min Combat Hostiles Destroyed 30 | . 15 4 . 11 Guns 7 | . 7 . . . Cannons 3 | . 3 . . . AOE 18 | . 5 4 . 9 Classes Destroyed 10 | . 7 . . 3 Worker 3 | . 2 1 . . Hauler 1 | . 1 . . . Recycler 2 | . 1 . . 1 Operator 1 | . 1 . . . Watcher 3 | . 3 . . . Swarmer 5 | . 2 3 . . Grunt 15 | . 13 1 . 1 Demolisher 2 | . . . . 2 Hunter 2 | . . . . 2 Assembled 9 | . . . . 9 Best Kill Streak 12 | . 4 3 . 12 Combat Bots Only 11 | . 3 3 . 11 Max Kills in Single Turn 6 | . 3 1 . 6 Gunslinging . | . . . . . Exploded 5 | . 1 1 . 5 Melee . | . . . . . Uniques/NPCs Destroyed . | . . . . . Combat | -11 -10 -10 -10 -9 -------- Run | Yrd Mat Min Exi Min Hostile Shots Fired 112 | . 68 15 . 29 Missed 26 | . 18 5 . 3 Damage Taken 1161 | . 603 116 . 442 Core 239 | . 119 8 . 112 Absorbed by Shields . | . . . . . Core Remaining (%) 100 | 100 . . . . Volleys Fired 60 | . 45 6 1 8 Largest 2 | . 2 2 1 1 Hottest 250 | . 120 66 250 250 Shots Fired 107 | . 88 10 1 8 Gun 41 | . 41 . . . Cannon 21 | . 13 . 1 7 Launcher 45 | . 34 10 . 1 Special . | . . . . . Kinetic 14 | . 14 . . . Thermal 48 | . 40 . 1 7 Explosive . | . . . . . Electromagnetic 45 | . 34 10 . 1 Robot Hit Streak 8 | . 8 2 . 2 Robot Miss Streak 4 | . 3 2 . 4 Penetration Max . | . . . . . Secondary Targets 1 | . 1 . . . Max Gunslinging Chain 1 | . 1 . . . Shots Hit Robots 60 | . 52 4 . 4 Core Hits 71 | . 38 9 . 24 Critical Kills . | . . . . . Critical Parts Destroyed . | . . . . . Critical Strikes 1 | . 1 . . . Burn 1 | . 1 . . . Melee Attacks . | . . . . . Impact . | . . . . . Slashing . | . . . . . Piercing . | . . . . . Sneak Attacks . | . . . . . Combat Hostiles . | . . . . . Follow-up Attacks . | . . . . . Damage Inflicted 2509 | . 1338 252 14 905 Guns 386 | . 386 . . . Cannons 216 | . 138 . . 78 Explosions 1886 | . 805 240 14 827 Melee . | . . . . . Ramming 21 | . 9 12 . . Kinetic 133 | . 133 . . . Thermal 1379 | . 494 . 14 871 Explosive . | . . . . . Electromagnetic 976 | . 702 240 . 34 Impact . | . . . . . Slashing . | . . . . . Piercing . | . . . . . Highest Corruption . | . . . . . Average Corruption . | . . . . . Corruption Purged . | . . . . . Corruption Blocked . | . . . . . Overload Shots . | . . . . . Overflow Damage 31 | . 16 . . 15 Projectiles . | . . . . . Explosions 31 | . 16 . . 15 Melee . | . . . . . Knockbacks . | . . . . . Impact . | . . . . . Kinetic . | . . . . . Secondary . | . . . . . Self-Inflicted Damage 108 | . 45 8 . 55 Shots 12 | . 6 1 . 5 Rammed 3 | . 1 2 . . Targets Rammed 3 | . 1 2 . . Kicked . | . . . . . Crushed . | . . . . . Highest Temperature 935 | . 317 22 210 935 Average Temperature 149 | . 57 11 112 709 Received Heat Transfer 492 | . 279 33 . 180 Effects 15 | . . . . 15 Shutdowns 4 | . . . . 4 Interference 4 | . . . . 4 Short Circuit 2 | . . . . 2 Damage (minor) 3 | . . . . 3 Damage (major) 2 | . . . . 2 Siege Activations . | . . . . . Robots Corrupted . | . . . . . Combat Hostiles . | . . . . . Parts Fried 3 | . 3 . . . Impact Corruptions . | . . . . . Robots Melted 3 | . . . . 3 Combat Hostiles 2 | . . . . 2 Parts Melted 7 | . 1 . . 6 Heat Transferred 6130 | . 1310 . 80 4740 Parts Sabotaged . | . . . . . Parts Stolen . | . . . . . Parts Stripped . | . . . . . Power Chain Reactions 11 | . 8 2 . 1 Alert | -11 -10 -10 -10 -9 ------- Run | Yrd Mat Min Exi Min Peak Influence 225 | . 225 127 . 76 Initial 23 | . . 23 . . Average 69 | . 96 28 . 34 Maximum Alert Level 1 | . 1 . . . Low Security (%) 96 | 100 95 100 . 100 Level 1 3 | . 4 . . . Level 2 . | . . . . . Level 3 . | . . . . . Level 4 . | . . . . . Level 5 . | . . . . . High Security . | . . . . . Max Security . | . . . . . Squads Dispatched 5 | . 5 . . . Investigation 4 | . 4 . . . Extermination . | . . . . . Reinforcement 1 | . 1 . . . Assault . | . . . . . Garrison . | . . . . . Intercept . | . . . . . Searches Triggered . | . . . . . Construction Impeded . | . . . . . Haulers Reinforced . | . . . . . Active Scanning Responses . | . . . . . Cargo Convoy Interrupts . | . . . . . Stealth | -11 -10 -10 -10 -9 --------- Run | Yrd Mat Min Exi Min Distress Signals . | . . . . . Communications Jammed . | . . . . . Distress Signals . | . . . . . Times Spotted 51 | . 25 5 . 21 Peak Tracking Total 10 | . 3 3 . 10 Tactical Retreats 6 | . 5 . . 1 Traps | -11 -10 -10 -10 -9 ------- Run | Yrd Mat Min Exi Min Traps Triggered 1 | . 1 . . . Indirectly 1 | . 1 . . . Trap Hack Attempts . | . . . . . Triggered . | . . . . . Disarmed . | . . . . . Reprogrammed . | . . . . . Reused . | . . . . . Traps Extracted . | . . . . . Installed . | . . . . . Triggered . | . . . . . Machines | -11 -10 -10 -10 -9 ---------- Run | Yrd Mat Min Exi Min Machines Disabled 5 | . 5 . . . Max in Single Turn 1 | . 1 . . . Machines Repaired . | . . . . . Machines Dismantled . | . . . . . Machines Sabotaged . | . . . . . Overloaded Fab Kills . | . . . . . Hacking | -11 -10 -10 -10 -9 --------- Run | Yrd Mat Min Exi Min Machines Accessed 8 | . 7 . 1 . Terminals 6 | . 6 . . . Fabricators . | . . . . . Repair Stations . | . . . . . Recycling Units 1 | . 1 . . . Scanalyzers . | . . . . . Garrison Access . | . . . . . Total Hacks 21 | . 20 . 1 . Successful 10 | . 9 . 1 . Failed 10 | . 10 . . . Catastrophic 3 | . 3 . . . Database Lockouts 1 | . 1 . . . Manual 19 | . 18 . 1 . Terminals 18 | . 18 . . . Fabricators . | . . . . . Repair Stations . | . . . . . Recycling Units 2 | . 2 . . . Scanalyzers . | . . . . . Garrison Access . | . . . . . Terminal Hacks 5 | . 4 . 1 . Prototype ID Bank 3 | . 3 . . . Branch Access Points 1 | . 1 . . . Derelict Proto ID Bank 1 | . . . 1 . Fabricator Hacks . | . . . . . Repair Station Hacks . | . . . . . Recycling Unit Hacks 1 | . 1 . . . Retrieve Components 1 | . 1 . . . Scanalyzer . | . . . . . Garrison Access Hacks . | . . . . . Unauthorized Hacks 4 | . 4 . . . Terminals 3 | . 3 . . . Botnet 3 | . 3 . . . Fabricators . | . . . . . Repair Stations . | . . . . . Recycling Units 1 | . 1 . . . Reject 1 | . 1 . . . Scanalyzers . | . . . . . Garrison Access . | . . . . . Data Cores Recovered . | . . . . . Used . | . . . . . Hacking Detections 5 | . 5 . . . Full Trace Events 3 | . 3 . . . Feedback Events . | . . . . . Feedback Blocked . | . . . . . Robot Schematics Acquired . | . . . . . Robots Built . | . . . . . Authchips . | . . . . . Time . | . . . . . Total Robot Build Rating . | . . . . . Part Schematics Acquired . | . . . . . Parts Built . | . . . . . Authchips . | . . . . . Time . | . . . . . Total Part Build Rating . | . . . . . Parts Repaired . | . . . . . Time . | . . . . . Parts Recycled . | . . . . . Recycled Matter . | . . . . . Retrieved Matter . | . . . . . Retrieved Components 6 | . 6 . . . Parts Scanalyzed . | . . . . . Part Schematics Acquired . | . . . . . Parts Damaged . | . . . . . Bothacking | -11 -10 -10 -10 -9 ------------ Run | Yrd Mat Min Exi Min Used RIF Installer . | . . . . . Robots Hacked . | . . . . . Non-combat . | . . . . . Combat . | . . . . . Robot Hacks Applied . | . . . . . Relay Couplers Released . | . . . . . Fabnet Peak Effective % . | . . . . . Robots Rewired 5 | . . . 5 . Allies Hacked . | . . . . . Hacks Repelled . | . . . . . Allies | -11 -10 -10 -10 -9 -------- Run | Yrd Mat Min Exi Min Total Allies 5 | . . . 5 . Largest Group 5 | . . . 5 5 Highest-Rated Group 66 | . . . 66 66 Highest-Rated Ally 21 | . . . 21 21 Total Orders . | . . . . . Ally Attacks 22 | . . . . 22 Total Damage 357 | . . . . 357 Kills 5 | . . . . 5 Allies Corrupted . | . . . . . Allies Melted . | . . . . . Intel | -11 -10 -10 -10 -9 ------- Run | Yrd Mat Min Exi Min Robot Analysis Total . | . . . . . Derelict Logs Recovered 1 | . . 1 . . Drone Launches . | . . . . . Drone Recoveries . | . . . . . Exploration | -11 -10 -10 -10 -9 ------------- Run | Yrd Mat Min Exi Min Turns Passed 5687 | 114 2266 1258 2000 49 Spaces Moved 1908 | 73 832 387 610 6 Core 24 | 24 . . . . Treads 1884 | 49 832 387 610 6 Legs . | . . . . . Wheels . | . . . . . Hover . | . . . . . Flight . | . . . . . Fastest Speed 50 | 50 160 320 320 320 Average Speed 283 | 140 251 320 320 346 Slowest Speed 480 | 200 320 320 320 480 Overloaded Moves . | . . . . . Propulsion Burnouts . | . . . . . Robots Hopped . | . . . . . Cave-ins Triggered . | . . . . . Exploration Rate (%) 56 | 4 98 86 89 7 Regions Visited 4 Branch Regions 3 Pre-discovered Areas . | . . . . . Known Exits Taken 1 | . 1 . . . Unknown Exits Taken 3 | 1 . 1 1 . Scrap Searched 3 | . . 3 . . Spaces Dug . | . . . . . Terrain Destroyed 53 | . 16 14 . 23 Melee . | . . . . . Projectile . | . . . . . AOE 53 | . 16 14 . 23 Terrain Rammed . | . . . . . Walls Destroyed . | . . . . . Machines Disabled . | . . . . . Actions | -11 -10 -10 -10 -9 --------- Run | Yrd Mat Min Exi Min Total 2074 | 82 912 394 660 26 Wait 9 | . 3 . . 6 Move 1904 | 72 831 386 609 6 Hop . | . . . . . Pick Up 21 | 3 16 . 2 . Fast Attach 7 | 5 2 . . . Attach 9 | 1 2 . 1 5 Detach 3 | . . . 2 1 Swap 10 | 1 9 . . . Drop 3 | . 3 . . . Fire 60 | . 45 6 1 8 Melee . | . . . . . Ram . | . . . . . Kick . | . . . . . Crush 3 | . 1 2 . . Escape Stasis . | . . . . . Rewire 45 | . . . 45 . Trap . | . . . . . Miscellaneous . | . . . . . Route ------- -11/Scrapyard -10/Materials (discovered 5 exits: *Mat x3 / *Min x2) -10/Mines (discovered 3 exits: *Mat x2 / *Exi) -10/Exiles -9/Mines History --------- Turn | Location | Event 7 | -11/Scrapyard | Discovered new exit (range 16) 115 | -11/Scrapyard | Entered Materials 316 | -10/Materials | Build established: Mutant 689 | -10/Materials | Discovered new exit (range 8) 1098 | -10/Materials | Discovered new exit (range 13) 1296 | -10/Materials | Discovered new exit (range 12) 1456 | -10/Materials | Discovered new exit (range 15) 1480 | -10/Materials | Central database locked down 2218 | -10/Materials | Discovered new exit (range 12) 2279 | -10/Materials | Identified exit to Mines 2381 | -10/Materials | Entered Mines 2471 | -10/Mines | Discovered new exit (range 7) 2526 | -10/Mines | Core integrity fell below 50% 3585 | -10/Mines | Identified exit to Materials 3626 | -10/Mines | Deemed a non-threat by the Exiles lab entrance 3626 | -10/Mines | Discovered new exit (range 5) 3639 | -10/Mines | Entered Exiles 3639 | -10/Exiles | Found Exiles lab destroyed 4713 | -10/Exiles | Build established: Commander-Mutant 4781 | -10/Exiles | Discovered new exit (range 10) 5075 | -10/Exiles | Opened EX-Vault 5101 | -10/Exiles | Found Firepult 5639 | -10/Exiles | Entered Mines 5639 | -9/Mines | Accompanied by 5 allies 5640 | -9/Mines | Assembled infested the area 5669 | -9/Mines | Core integrity fell below 20% 5682 | -9/Mines | Destroyed 11 combat bots 5688 | -9/Mines | Self-destructed Last Messages --------------- 05674_ Acquired 13 matter. 05674_ U-05 Engineer builds a Wall. 05675_ Power failure, Ion Engine shutdown. 05676_ Overheating: Lgt. Treads damaged (-25). 05677_ Overheating: System interference. 05677_ EMP Blaster temporarily disabled. 05678_ U-05 Engineer lays Concrete. 05681_ U-05 Engineer builds a Wall. 05683_ Overheating: Beam Cannon damaged (-41). 05684_ EMP Blaster destroyed. 05684_ Lgt. Treads destroyed. 05685_ Overheating: Broken Lgt. Treads damaged (-3). 05685_ U-05 Engineer lays Concrete. 05686_ Power failure, Ion Engine shutdown. 05686_ Beam Cannon broken. 05686_ Overheating: Short circuit. 05686_ U-05 Engineer lays Concrete. 05687_ Overheating: Broken Lgt. Treads damaged (-2). 05687_ Broken Lgt. Treads destroyed. 05688_ U-05 Engineer builds a Wall. Map ----- +----------------------------------------------------+ | ???????????????????????????????????????????? | | ???????????????????????????????????????????? | | ???????????????????????????????????????????? | | ???????????????????????????????????????????? | | ???????????????????????????????????????????? | | ???????????????????????????????????????????? | | ???????????????????????????????????????????? | | ???????????????????????????????????????????? | | ???????????????????????????????????????????? | | ???????????????????????????????????????????? | | ???????????????????????????????????????????? | | ????????????????????????????????? ?????????? | | ???????????????????????????????? ????????? | | ???????????????????????????????? ?????????? | | ???????????????????????????????$ #?????????? | | ??????????????????????????????#; ##????????? | | ???????????????????????????### ;#????????? | | ??????????????????????????## ;#????????? | | ??????????????????????????# % %?????????? | | ??????????????????????????#= #??????????? | | ??????????????????????????# ;;#??????????? | | ????????????????????????### a% ;#??????????? | | ????????????????????????# ###????????? | | ???????????????????????## ##???????? | | ??????????????????# ###### ;#???????? | | ??????????????????# %!%*%@ % #??????? | | ??????????????????# != =u a #??? | | ??????????????????# ##; # #??? | | ?????????????????????# #% ##### ###;#??? | | ???????????????????? ### ##????????????? | | ??????????????????? ??## ##?????????????? | | ??????????????????# t????####??????????????? | | ??????????????????##???????????????????????? | | ???????????????????????????????????????????? | | ???????????????????????????????????????????? | | ???????????????????????????????????????????? | | ???????????????????????????????????????????? | | ???????????????????????????????????????????? | | ???????????????????????????????????????????? | | ???????????????????????????????????????????? | | ???????????????????????????????????????????? | | ???????????????????????????????????????????? | | ???????????????????????????????????????????? | | ???????????????????????????????????????????? | | ???????????????????????????????????????????? | | ???????????????????????????????????????????? | | ???????????????????????????????????????????? | | ???????????????????????????????????????????? | | ???????????????????????????????????????????? | | ???????????????????????????????????????????? | +----------------------------------------------------+ Best States ------------- Heat Dissipation 25 Energy Generation 10 Energy Capacity 250 Matter Stores 300 Matter Capacity 300 Sight Range 16 Terrain Scan Density 10 Evasion (%) 40 Targeting Accuracy 5 Recoil Reduction 2 Item Schematics ----------------- None Robot Schematics ------------------ None Fabricated ------------ Nothing Alien Tech Used ----------------- None Achievements -------------- Backstab Quick And Dirty Challenges ------------ None Game ------ Seed MyomerSchematicCutter Manual? 0 Play Time 00:19:55 Cumulative 33.2 hours Start 2024.03.12 @ 08:40:21 End 2024.03.12 @ 09:20:47 Sessions 5 Manual Loads 0 Difficulty Rogue Special Mode None Game No. 36 Rogue 35 Adventurer 1 Explorer 0 Win Type - Total 3 Types 3/0/0/0/0/0/0/0/0 Lore% 27 Gallery% 27 Achievement% 29 Wizard Run 0 Options --------- Layout 0 ASCII 0 Keyboard 0 Movement Arrows Keybinds 0 Fullscreen 1 Font 20/X11 Map View 66x50 Zoom Use 0% Tactical HUD 1 Map Filters NONE Filters SHIFT_HUE(10)|LOW_CONTRAST(6,12,16) Steam 1 RUN: 76aba0f9-f8e0-43bb-98ea-f5d22eb7931b